bitfinex-derivatives/quotes_SOLF0:USTF0_20250216
["timestamp","ask_amount","ask_price","bid_price","bid_amount"]
[1739732035245,0.03367366,189.35,189.32,5.2812]
[1739732035451,0.03367366,189.35,189.31,6.93554839]
[1739732036652,0.03367366,189.35,189.33,6.93554839]
[1739732037444,0.03367366,189.35,189.33,12.21624839]
[1739732038052,0.03367366,189.35,189.34,5.2807]
[1739732040256,0.03367366,189.35,189.33,6.93554839]
[1739732040959,0.03367366,189.35,189.34,5.2807]
[1739732042856,0.03367366,189.35,189.33,6.93554839]
[1739732043661,0.03367366,189.35,189.33,12.21644839]
[1739732044058,0.03367366,189.35,189.33,6.93554839]
[1739732044657,5.31407366,189.35,189.33,6.93554839]
[1739732044962,0.03367366,189.35,189.29,6.93554839]
[1739732045759,5.281,189.33,189.29,12.21744839]
[1739732045960,0.03367366,189.35,189.29,6.93554839]
[1739732046264,6.96922205,189.35,189.27,12.21794839]
[1739732046465,6.93554839,189.33,189.27,6.93554839]
[1739732046666,6.93554839,189.33,189.25,6.93554839]
[1739732046860,5.2819,189.3,189.25,12.21864839]
[1739732047055,5.2819,189.3,189.25,6.93554839]
[1739732047861,0.0368216,189.31,189.25,6.93554839]
[1739732048061,5.2824,189.28,189.25,6.93554839]
[1739732048363,6.93554839,189.29,189.23,6.93554839]
[1739732048763,5.3171069,189.28,189.23,6.93554839]
[1739732049166,0.0345069,189.28,189.23,6.93554839]
[1739732049463,5.283,189.26,189.21,6.93554839]
[1739732050865,12.21824839,189.27,189.21,6.93554839]
[1739732051661,6.93554839,189.27,189.21,6.93554839]
[1739732052666,12.21814839,189.27,189.21,12.21964839]
[1739732053262,12.21874839,189.25,189.2,5.2845]
[1739732053468,6.93554839,189.27,189.19,6.93554839]
[1739732053770,0.03357458,189.24,189.19,6.93554839]
[1739732054270,0.03357458,189.24,189.21,5.2841]
[1739732054471,0.03357458,189.24,189.19,6.93554839]
[1739732054765,0.03357458,189.24,189.21,6.93554839]
[1739732055472,0.03357458,189.24,189.22,5.284]
[1739732055670,0.03357458,189.24,189.21,6.93554839]
[1739732055972,0.03357458,189.24,189.23,12.21934839]
[1739732060577,13.20294839,189.33,189.28,5.2823]
[1739732060878,6.2674,189.33,189.29,6.93554839]
[1739732061773,6.30770012,189.33,189.29,6.97234023]
[1739732062677,6.30770012,189.33,189.29,0.03679184]
[1739732063177,5.2814,189.32,189.29,0.03679184]
[1739732063573,6.30770012,189.33,189.29,0.03679184]
[1739732063774,11.58870012,189.33,189.29,0.03679184]
[1739732064277,6.30770012,189.33,189.29,0.03679184]
[1739732067276,5.2813,189.32,189.29,0.03679184]
[1739732067774,6.30770012,189.33,189.29,0.03679184]
[1739732069377,5.2815,189.31,189.29,0.03679184]
[1739732070072,5.2813,189.32,189.29,0.03679184]
[1739732070278,6.30770012,189.33,189.29,0.03679184]
[1739732070772,11.58870012,189.33,189.29,0.03679184]
[1739732071778,6.30770012,189.33,189.29,0.03679184]
[1739732072378,11.58890012,189.33,189.29,0.03679184]
[1739732072578,6.30770012,189.33,189.29,0.03679184]
[1739732073179,11.58890012,189.33,189.29,0.03679184]
[1739732073380,6.30770012,189.33,189.29,0.03679184]
[1739732074082,11.58870012,189.33,189.29,0.03679184]
[1739732075081,11.58870012,189.33,189.29,12.25434023]
[1739732075281,6.30770012,189.33,189.29,0.03679184]
[1739732075582,5.2813,189.32,189.29,0.03679184]
[1739732075782,6.30770012,189.33,189.29,0.03679184]
[1739732076078,13.24324851,189.33,189.29,0.03679184]
[1739732077078,5.2818,189.3,189.29,0.03679184]
[1739732079182,5.2816,189.31,189.29,0.03679184]
[1739732079384,13.24324851,189.33,189.29,0.03679184]
[1739732079781,18.52434851,189.33,189.29,0.03679184]
[1739732080185,13.24324851,189.33,189.29,0.03679184]
[1739732080681,13.24324851,189.33,189.29,12.25424023]
[1739732080682,6.30770012,189.33,189.29,12.25424023]
[1739732083186,11.58880012,189.33,189.29,12.25424023]
[1739732084689,11.58880012,189.33,189.29,5.31869184]
[1739732085587,6.30770012,189.33,189.3,5.2817]
[1739732087588,0.04030012,189.33,189.29,6.97234023]
[1739732088190,0.04030012,189.33,189.3,5.2817]
[1739732090690,0.04030012,189.33,189.31,5.2815]
[1739732091591,0.04030012,189.33,189.29,6.97234023]
[1739732091889,0.04030012,189.33,189.3,5.2818]
[1739732093194,0.04030012,189.33,189.29,6.97234023]
[1739732093391,0.04030012,189.33,189.31,5.2815]
[1739732093792,0.04030012,189.33,189.29,6.97234023]
[1739732094091,0.04030012,189.33,189.3,5.2818]
[1739732094892,0.04030012,189.33,189.29,6.97234023]
[1739732095190,0.04030012,189.33,189.31,5.2814]
[1739732098693,0.04030012,189.33,189.29,6.97234023]
[1739732098895,0.04030012,189.33,189.3,5.2818]
[1739732099293,0.04030012,189.33,189.29,6.97234023]
[1739732099596,0.04030012,189.33,189.31,5.2815]
[1739732099895,0.04030012,189.33,189.29,6.97234023]
[1739732100085,0.04030012,189.33,189.3,5.2817]
[1739732100490,0.04030012,189.33,189.29,6.97234023]
[1739732100690,0.04030012,189.33,189.31,5.2813]
[1739732101195,0.04030012,189.33,189.29,6.97234023]
[1739732101893,5.32150012,189.33,189.29,0.03679184]
[1739732102090,0.04030012,189.33,189.29,0.03679184]
[1739732102291,6.97584851,189.33,189.29,0.03679184]
[1739732102797,5.2817,189.31,189.29,0.03679184]
[1739732103700,6.97584851,189.33,189.29,0.03679184]
[1739732103888,5.2818,189.3,189.29,0.03679184]
[1739732104894,6.97584851,189.33,189.25,6.93554839]
[1739732105099,3.2803,189.32,189.25,6.93554839]
[1739732105796,5.282,189.3,189.25,12.21874839]
[1739732106099,5.282,189.3,189.25,6.93554839]
[1739732106299,3.2803,189.32,189.25,6.93554839]
[1739732106300,5.2821,189.29,189.25,6.93554839]
[1739732106700,5.31763905,189.29,189.25,6.93554839]
[1739732106901,0.03553905,189.29,189.25,6.93554839]
[1739732107102,6.97108744,189.29,189.21,6.93554839]
[1739732107601,5.283,189.26,189.21,12.21964839]
[1739732109106,5.2832,189.25,189.2,5.2845]
[1739732109301,6.93554839,189.27,189.19,6.93554839]
[1739732109501,0.03636144,189.24,189.19,6.93554839]
[1739732109803,5.32006144,189.24,189.19,6.93554839]
[1739732110106,0.03636144,189.24,189.19,6.93554839]
[1739732110405,5.284,189.23,189.19,6.93554839]
[1739732111100,0.03636144,189.24,189.19,6.93554839]
[1739732111401,0.03636144,189.24,189.21,6.93554839]
[1739732111703,3.2808,189.26,189.21,12.21974839]
[1739732111903,0.03870177,189.24,189.21,12.21974839]
[1739732112501,0.03870177,189.24,189.21,6.93554839]
[1739732112701,0.03870177,189.24,189.23,6.93554839]
[1739732112896,6.93554839,189.29,189.23,6.93554839]
[1739732113098,207.42284839,189.31,189.25,6.93554839]
[1739732113397,0.03734046,189.28,189.25,6.93554839]
[1739732114403,0.03734046,189.28,189.23,6.93554839]
[1739732114605,5.2825,189.28,189.23,12.21904839]
[1739732114803,0.03507099,189.27,189.23,6.93554839]
[1739732115507,0.03507099,189.27,189.25,6.93554839]
[1739732116810,0.03507099,189.27,189.23,6.93554839]
[1739732117110,6.93554839,189.27,189.19,6.93554839]
[1739732117311,6.97428875,189.27,189.19,6.93554839]
[1739732117512,5.2832,189.25,189.2,5.2846]
[1739732118213,6.93554839,189.25,189.19,6.93554839]
[1739732118714,5.2839,189.23,189.19,6.93554839]
[1739732119207,5.32218109,189.23,189.19,6.93554839]
[1739732119412,0.03828109,189.23,189.19,12.22034839]
[1739732119714,0.03828109,189.23,189.19,6.93554839]
[1739732119916,0.03828109,189.23,189.21,6.93554839]
[1739732120310,0.03828109,189.23,189.22,5.284]
[1739732123418,0.03828109,189.23,189.21,6.93554839]
[1739732127013,0.03828109,189.23,189.21,12.21984839]
[1739732128117,0.03828109,189.23,189.21,6.93554839]
[1739732129022,0.03828109,189.23,189.21,12.21984839]
[1739732129218,0.03828109,189.23,189.21,6.93554839]
[1739732131223,0.03828109,189.23,189.22,5.284]
[1739732131714,207.42284839,189.31,189.21,6.93554839]
[1739732131919,18.70444839,189.31,189.25,12.21854839]
[1739732132720,5.2818,189.3,189.25,12.21854839]
[1739732132917,5.32144721,189.3,189.26,0.03729099]
[1739732134025,0.03964721,189.3,189.27,5.2826]
[1739732138529,0.03964721,189.3,189.26,0.03729099]
[1739732138530,6.9751956,189.3,189.26,0.03729099]
[1739732138826,6.93554839,189.28,189.26,0.03729099]
[1739732139420,5.2826,189.27,189.26,0.03729099]
[1739732139623,6.93554839,189.28,189.19,6.93554839]
[1739732139822,6.93554839,189.26,189.19,6.93554839]
[1739732140026,5.2837,189.24,189.19,6.93554839]
[1739732140227,5.2837,189.24,189.19,12.22044839]
[1739732140929,0.03707697,189.23,189.19,12.22044839]
[1739732143923,0.03707697,189.23,189.19,6.93554839]
[1739732145027,0.03707697,189.23,189.19,12.22044839]
[1739732145326,0.03707697,189.23,189.19,6.93554839]
[1739732145529,0.03707697,189.23,189.17,6.93554839]
[1739732146128,5.2841,189.22,189.17,12.22094839]
[1739732146330,6.93554839,189.22,189.15,6.93554839]
[1739732146527,6.93554839,189.22,189.13,118.54]
[1739732146727,6.93554839,189.2,189.13,12.22204839]
[1739732147232,0.03915896,189.18,189.13,6.93554839]
[1739732147821,5.32435896,189.18,189.13,12.22204839]
[1739732148430,0.03915896,189.18,189.13,12.22204839]
[1739732149727,6.97470735,189.18,189.11,6.93554839]
[1739732149928,5.2855,189.17,189.11,12.22264839]
[1739732150327,5.286,189.15,189.09,12.22304839]
[1739732150826,5.2867,189.13,189.07,68.55233083]
[1739732151131,6.96963947,189.14,189.07,63.26423083]
[1739732151325,6.96963947,189.14,189.07,6.93554839]
[1739732152132,12.22234839,189.12,189.05,12.22424839]
[1739732152631,12.22234839,189.12,189.02,118.54]
[1739732152632,0.04025529,189.1,189.03,6.93554839]
[1739732153826,0.04025529,189.1,189.05,5.2888]
[1739732154031,0.04025529,189.1,189.03,6.93554839]
[1739732154231,0.04025529,189.1,189.04,5.2891]
[1739732154832,0.04025529,189.1,189.07,6.93554839]
[1739732155228,0.04025529,189.1,189.06,5.2884]
[1739732156730,0.04025529,189.1,189.07,5.2882]
[1739732160235,6.93554839,189.08,188.96,6.93554839]
[1739732160537,6.93554839,188.97,188.9,6.93554839]
[1739732160733,6.93554839,188.97,188.88,6.93554839]
[1739732160927,0.04047081,188.94,188.92,6.93554839]
[1739732161932,0.04047081,188.94,188.93,5.2919]
[1739732166730,0.04047081,188.94,188.92,6.93554839]
[1739732167639,0.04047081,188.94,188.92,12.22774839]
[1739732167841,0.04047081,188.94,188.92,6.93554839]
[1739732168233,0.04047081,188.94,188.93,5.2921]
[1739732168440,0.04047081,188.94,188.93,14.00202525]
[1739732176238,0.04047081,188.94,188.93,8.70992525]
[1739732176446,0.04047081,188.94,188.91,14.00242525]
[1739732176645,0.04047081,188.94,188.89,8.70992525]
[1739732177140,0.04047081,188.94,188.9,5.2928]
[1739732177645,0.04047081,188.94,188.92,5.2922]
[1739732177844,0.04047081,188.94,188.91,8.70992525]
[1739732178142,0.04047081,188.94,188.93,5.2921]
[1739732183049,0.04047081,188.94,188.91,8.70992525]
[1739732183249,0.04047081,188.94,188.9,5.2929]
[1739732183748,0.04047081,188.94,188.91,5.2926]
[1739732184050,0.04047081,188.94,188.89,8.70992525]
[1739732184449,0.04047081,188.94,188.9,5.2928]
[1739732184948,0.04047081,188.94,188.91,5.2926]
[1739732187051,8.75039606,188.94,188.89,5.2931]
[1739732187854,8.75039606,188.94,188.87,8.70992525]
[1739732188052,14.04249606,188.94,188.88,5.2935]
[1739732188652,8.75039606,188.94,188.87,8.70992525]
[1739732188848,8.75039606,188.94,188.87,14.00372525]
[1739732189054,8.75039606,188.94,188.87,8.70992525]
[1739732189954,8.75039606,188.94,188.89,5.2932]
[1739732190358,0.04047081,188.94,188.9,5.2927]
[1739732190558,0.04047081,188.94,188.89,8.70992525]
[1739732191257,0.04047081,188.94,188.91,5.2924]
[1739732191857,0.04047081,188.94,188.9,5.293]
[1739732192151,0.04047081,188.94,188.89,8.70992525]
[1739732192362,0.04047081,188.94,188.91,8.70992525]
[1739732192553,0.04047081,188.94,188.93,8.70992525]
[1739732192958,0.04047081,188.94,188.93,14.00202525]
[1739732194762,0.04047081,188.94,188.92,5.2924]
[1739732194962,0.04047081,188.94,188.89,8.70992525]
[1739732195264,0.04047081,188.94,188.9,5.2928]
[1739732195761,0.04047081,188.94,188.89,8.70992525]
[1739732195962,0.04047081,188.94,188.92,5.2922]
[1739732196157,0.04047081,188.94,188.91,8.70992525]
[1739732196660,0.04047081,188.94,188.93,5.2921]
[1739732197159,0.04047081,188.94,188.93,14.00202525]
[1739732201864,13.99962525,189.02,188.98,5.2906]
[1739732201865,8.70992525,189.02,188.98,5.2906]
[1739732202563,8.70992525,189.02,188.96,8.70992525]
[1739732202564,8.70992525,189.02,188.96,14.00102525]
[1739732202965,8.70992525,189.02,188.96,8.70992525]
[1739732203166,0.03757847,189.01,188.98,5.2907]
[1739732203869,0.03757847,189.01,188.97,0.03501978]
[1739732204068,0.03757847,189.01,188.97,5.32601978]
[1739732204667,0.03757847,189.01,188.98,5.2906]
[1739732204868,0.03757847,189.01,188.97,0.03501978]
[1739732206071,0.03757847,189.01,188.97,5.32581978]
[1739732206572,0.03757847,189.01,188.97,0.03501978]
[1739732207167,0.03757847,189.01,188.98,5.2907]
[1739732208068,0.03757847,189.01,188.99,5.2904]
[1739732209471,0.03757847,189.01,188.97,0.03501978]
[1739732209671,0.03757847,189.01,188.98,5.2905]
[1739732209876,0.03757847,189.01,188.97,0.03501978]
[1739732210167,0.03757847,189.01,188.98,5.2905]
[1739732210872,0.03757847,189.01,188.97,0.03501978]
[1739732212772,5.32767847,189.01,188.97,0.03501978]
[1739732213074,0.03757847,189.01,188.97,0.03501978]
[1739732213371,0.03757847,189.01,188.98,5.2907]
[1739732215076,0.03757847,189.01,188.97,0.03501978]
[1739732215278,0.03757847,189.01,188.97,5.32601978]
[1739732216078,0.03757847,189.01,188.97,0.03501978]
[1739732217078,0.03757847,189.01,188.97,5.32581978]
[1739732217275,0.03757847,189.01,188.97,0.03501978]
[1739732217475,8.70992525,189.0,188.97,0.03501978]
[1739732218181,5.2907,188.98,188.97,0.03501978]
[1739732222187,8.70992525,189.0,188.97,0.03501978]
[1739732223186,5.2907,188.98,188.97,0.03501978]
[1739732224490,8.70992525,189.0,188.97,0.03501978]
[1739732224691,5.2906,188.99,188.97,0.03501978]
[1739732225192,14.00022525,189.0,188.97,0.03501978]
[1739732227694,5.32757847,189.01,188.97,0.03501978]
[1739732227884,0.03757847,189.01,188.97,0.03501978]
[1739732228284,0.03757847,189.01,188.97,5.32591978]
[1739732228990,5.32757847,189.01,188.97,5.32591978]
[1739732229292,0.03757847,189.01,188.97,5.32591978]
[1739732229787,0.03757847,189.01,188.97,0.03501978]
[1739732229992,0.03757847,189.01,188.98,5.2907]
[1739732230694,0.03757847,189.01,188.97,0.03501978]
[1739732231195,0.03757847,189.01,188.97,5.32581978]
[1739732231494,5.32747847,189.01,188.97,0.03501978]
[1739732232093,0.03757847,189.01,188.97,0.03501978]
[1739732233592,5.32757847,189.01,188.97,0.03501978]
[1739732235595,0.03757847,189.01,188.97,5.32601978]
[1739732235792,0.03757847,189.01,188.97,0.03501978]
[1739732236498,5.32757847,189.01,188.97,0.03501978]
[1739732236898,0.03757847,189.01,188.97,0.03501978]
[1739732238197,0.03757847,189.01,188.97,5.32601978]
[1739732238800,0.03757847,189.01,188.99,5.2903]
[1739732239001,0.03757847,189.01,188.97,0.03501978]
[1739732239698,5.32767847,189.01,188.97,0.03501978]
[1739732242002,0.03757847,189.01,188.97,0.03501978]
[1739732242405,8.70992525,189.0,188.9,8.70992525]
[1739732242704,8.70992525,188.98,188.9,8.70992525]
[1739732243503,8.70992525,188.98,188.85,118.72]
[1739732243504,8.70992525,189.0,188.92,8.70992525]
[1739732243803,0.03513328,188.96,188.95,5.2916]
[1739732244005,8.70992525,189.02,188.95,5.2916]
[1739732244196,0.03380097,188.97,188.95,5.2916]
[1739732244704,0.03380097,188.97,188.96,14.00122525]
[1739732245001,3.2108,189.03,188.96,8.70992525]
[1739732245202,3.2108,189.03,188.98,8.70992525]
[1739732245402,0.04025298,189.01,188.98,8.70992525]
[1739732245902,0.04025298,189.01,188.98,14.00042525]
[1739732246102,0.04025298,189.01,188.98,8.70992525]
[1739732246306,0.04025298,189.01,189.0,5.2902]
[1739732247710,0.04025298,189.01,188.99,5.2904]
[1739732248008,0.04025298,189.01,188.98,8.70992525]
[1739732248406,0.04025298,189.01,188.98,14.00062525]
[1739732249404,0.04025298,189.01,189.0,14.00012525]
[1739732249604,5.2883,189.07,189.0,8.70992525]
[1739732249805,0.03793673,189.02,189.0,8.70992525]
[1739732250717,73.57425359,189.1,189.0,8.70992525]
[1739732251015,73.57425359,189.1,189.04,8.70992525]
[1739732251713,78.86165359,189.1,189.04,13.99872525]
[1739732252014,0.03390224,189.09,189.05,0.03427226]
[1739732252613,5.32160224,189.09,189.05,0.03427226]
[1739732252815,0.03390224,189.09,189.06,8.70992525]
[1739732253415,0.03390224,189.09,189.07,5.288]
[1739732253815,0.03390224,189.09,189.08,13.99782525]
[1739732254217,0.03390224,189.09,189.08,8.70992525]
[1739732255113,0.03390224,189.09,189.06,8.70992525]
[1739732256611,0.03390224,189.09,189.05,0.03427226]
[1739732256612,0.03390224,189.09,189.08,8.70992525]
[1739732258214,0.03390224,189.09,189.08,13.99782525]
[1739732258815,202.70992525,189.18,189.08,8.70992525]
[1739732259118,5.2855,189.17,189.13,8.70992525]
[1739732259321,8.70992525,189.18,189.11,8.70992525]
[1739732260224,0.03641815,189.16,189.13,14.03308225]
[1739732260519,8.70992525,189.2,189.13,8.70992525]
[1739732260725,0.03819936,189.16,189.13,8.74790551]
[1739732265935,0.03819936,189.16,189.15,8.70992525]
[1739732267547,0.03819936,189.16,189.15,13.99592525]
[1739732269931,0.03819936,189.16,189.15,8.70992525]
[1739732272536,0.03819936,189.16,189.15,13.99592525]
[1739732272837,0.03819936,189.16,189.15,8.70992525]
[1739732273036,0.03819936,189.16,189.15,13.99592525]
[1739732275037,15.26842525,189.26,189.18,5.2851]
[1739732275238,15.26842525,189.26,189.19,8.70992525]
[1739732275439,6.5585,189.26,189.19,8.70992525]
[1739732275842,6.5585,189.26,189.21,8.70992525]
[1739732276338,5.31955202,189.25,189.22,0.03633964]
[1739732277243,0.03625202,189.25,189.22,0.03633964]
[1739732278439,5.31945202,189.25,189.22,0.03633964]
[1739732279341,5.2835,189.24,189.22,0.03633964]
[1739732279540,0.03625202,189.25,189.22,0.03633964]
[1739732279847,5.31955202,189.25,189.22,0.03633964]
[1739732280446,0.03625202,189.25,189.22,0.03633964]
[1739732281743,5.31965202,189.25,189.22,0.03633964]
[1739732282242,0.03625202,189.25,189.22,0.03633964]
[1739732283444,5.2835,189.24,189.22,0.03633964]
[1739732283644,0.03625202,189.25,189.22,0.03633964]
[1739732284243,5.31945202,189.25,189.22,0.03633964]
[1739732284439,0.03625202,189.25,189.23,8.70992525]
[1739732284948,0.03625202,189.25,189.24,5.2835]
[1739732287346,0.03625202,189.25,189.23,8.70992525]
[1739732287947,5.31955202,189.25,189.22,0.03633964]
[1739732288345,0.03625202,189.25,189.22,0.03633964]
[1739732290345,5.31955202,189.25,189.22,0.03633964]
[1739732290650,0.03625202,189.25,189.22,0.03633964]
[1739732291152,5.31965202,189.25,189.22,0.03633964]
[1739732292251,0.03625202,189.25,189.22,0.03633964]
[1739732292648,72.59216661,189.36,189.23,8.70992525]
[1739732292951,72.59216661,189.36,189.35,8.70992525]
[1739732293745,72.59216661,189.36,189.34,0.03456884]
[1739732293946,72.59216661,189.36,189.33,8.70992525]
[1739732294146,72.59216661,189.36,189.33,8.74648267]
[1739732294954,0.03411208,189.37,189.33,8.74648267]
[1739732296052,0.03411208,189.37,189.35,8.70992525]
[1739732298455,0.03411208,189.37,189.33,8.74648267]
[1739732299156,5.31401208,189.37,189.33,8.74648267]
[1739732299353,0.03411208,189.37,189.33,8.74648267]
[1739732301656,0.03411208,189.37,189.33,14.02738267]
[1739732302161,0.03411208,189.37,189.35,5.2804]
[1739732302357,0.03411208,189.37,189.35,8.70992525]
[1739732302757,0.03411208,189.37,189.36,5.2801]
[1739732304159,13.98722525,189.47,189.4,5.2787]
[1739732304360,3.3002,189.44,189.41,8.70992525]
[1739732305157,3.3002,189.44,189.41,8.74577158]
[1739732305356,3.33377098,189.44,189.41,8.74577158]
[1739732306660,3.33377098,189.44,189.41,0.03584633]
[1739732307762,8.61167098,189.44,189.41,0.03584633]
[1739732308160,3.33377098,189.44,189.41,0.03584633]
[1739732308472,5.2782,189.43,189.41,0.03584633]
[1739732309272,3.33377098,189.44,189.41,0.03584633]
[1739732310063,3.33377098,189.44,189.41,8.74577158]
[1739732310371,0.03357098,189.44,189.41,8.74577158]
[1739732310773,0.03357098,189.44,189.43,8.70992525]
[1739732311971,0.03357098,189.44,189.43,13.98812525]
[1739732313073,0.03357098,189.44,189.43,8.70992525]
[1739732313268,0.03357098,189.44,189.41,8.74577158]
[1739732313769,5.31157098,189.44,189.41,8.74577158]
[1739732313972,0.03357098,189.44,189.41,8.74577158]
[1739732314765,5.31157098,189.44,189.41,8.74577158]
[1739732315978,5.2782,189.43,189.41,8.74577158]
[1739732316680,0.03357098,189.44,189.41,8.74577158]
[1739732320982,0.03357098,189.44,189.43,13.98812525]
[1739732329785,194.0,189.53,189.47,8.70992525]
[1739732329991,6.6304,189.54,189.49,8.70992525]
[1739732330491,5.2758,189.52,189.49,8.70992525]
[1739732330880,0.03815222,189.52,189.49,14.02228123]
[1739732331086,0.03815222,189.52,189.49,8.74578123]
[1739732332190,5.31395222,189.52,189.49,8.74578123]
[1739732332488,0.03815222,189.52,189.49,8.74578123]
[1739732333792,5.31395222,189.52,189.49,8.74578123]
[1739732334193,0.03815222,189.52,189.49,8.74578123]
[1739732335595,0.03815222,189.52,189.49,14.02218123]
[1739732336694,0.03815222,189.52,189.49,8.74578123]
[1739732338887,5.31385222,189.52,189.49,8.74578123]
[1739732339088,0.03815222,189.52,189.49,8.74578123]
[1739732339389,5.2761,189.51,189.49,8.74578123]
[1739732342203,5.31395222,189.52,189.49,8.74578123]
[1739732342399,0.03815222,189.52,189.49,8.74578123]
[1739732343202,5.276,189.51,189.49,8.74578123]
[1739732343404,0.03815222,189.52,189.49,8.74578123]
[1739732343803,5.276,189.51,189.49,8.74578123]
[1739732346005,5.2762,189.5,189.49,8.74578123]
[1739732346204,5.2762,189.5,189.49,0.03585598]
[1739732347106,0.03815222,189.52,189.49,8.74578123]
[1739732348107,0.03815222,189.52,189.49,14.02228123]
[1739732348503,0.03815222,189.52,189.51,8.70992525]
[1739732350913,5.31385222,189.52,189.51,8.70992525]
[1739732351215,0.03815222,189.52,189.49,8.74578123]
[1739732351417,0.03815222,189.52,189.49,0.03585598]
[1739732351915,5.276,189.51,189.49,0.03585598]
[1739732352314,5.2762,189.5,189.49,0.03585598]
[1739732352518,0.03815222,189.52,189.45,8.70992525]
[1739732352912,5.277,189.48,189.45,8.70992525]
[1739732353515,5.2766,189.49,189.45,8.70992525]
[1739732353715,0.03640903,189.48,189.45,8.74899296]
[1739732354617,5.31320903,189.48,189.45,8.74899296]
[1739732356319,5.2771,189.47,189.45,8.74899296]
[1739732356619,0.03640903,189.48,189.45,0.03906771]
[1739732356922,5.2771,189.47,189.45,0.03906771]
[1739732357123,0.03640903,189.48,189.45,0.03906771]
[1739732357321,5.2771,189.47,189.45,0.03906771]
[1739732358116,5.2773,189.47,189.45,0.03906771]
[1739732358318,0.03640903,189.48,189.45,0.03906771]
[1739732358522,0.03640903,189.48,189.41,8.70992525]
[1739732359629,5.2779,189.44,189.43,0.03420448]
[1739732361229,12.03662525,189.47,189.39,8.70992525]
[1739732361525,15.17352525,189.47,189.39,8.70992525]
[1739732362426,0.03858035,189.45,189.41,0.03835651]
[1739732363026,5.2784,189.43,189.41,0.03835651]
[1739732363226,0.03858035,189.45,189.41,0.03835651]
[1739732363726,5.2785,189.42,189.41,0.03835651]
[1739732371926,8.70992525,189.43,189.35,8.70992525]
[1739732372128,8.70992525,189.4,189.33,8.70992525]
[1739732373228,8.74659323,189.38,189.35,0.03747041]
[1739732373426,5.2801,189.36,189.35,0.03747041]
[1739732374226,8.74659323,189.38,189.31,8.70992525]
[1739732374535,5.281,189.33,189.29,8.70992525]
[1739732375134,5.2813,189.32,189.29,8.70992525]
[1739732375629,5.2816,189.31,189.29,0.03454825]
[1739732375931,8.74921759,189.32,189.29,0.03454825]
[1739732376932,5.2815,189.31,189.29,0.03454825]
[1739732378321,0.03929234,189.32,189.29,0.03454825]
[1739732379729,5.32079234,189.32,189.29,0.03454825]
[1739732379931,0.03929234,189.32,189.29,0.03454825]
[1739732380834,5.32079234,189.32,189.29,0.03454825]
[1739732381036,0.03929234,189.32,189.29,0.03454825]
[1739732381436,5.2817,189.31,189.29,0.03454825]
[1739732381631,0.03929234,189.32,189.29,0.03454825]
[1739732382036,5.32059234,189.32,189.29,0.03454825]
[1739732382234,0.03929234,189.32,189.29,0.03454825]
[1739732382836,5.2818,189.31,189.29,0.03454825]
[1739732383033,8.74921759,189.32,189.29,0.03454825]
[1739732383831,5.2818,189.3,189.29,0.03454825]
[1739732384136,8.74921759,189.32,189.29,0.03454825]
[1739732384329,5.2818,189.3,189.29,0.03454825]
[1739732384730,8.74921759,189.32,189.29,0.03454825]
[1739732386237,5.2818,189.3,189.29,0.03454825]
[1739732388943,14.03051759,189.32,189.29,0.03454825]
[1739732389837,5.2815,189.31,189.29,0.03454825]
[1739732394046,0.03929234,189.32,189.29,0.03454825]
[1739732394241,5.32059234,189.32,189.29,0.03454825]
[1739732395844,5.2816,189.31,189.29,0.03454825]
[1739732396444,5.2818,189.3,189.29,0.03454825]
[1739732399050,5.2816,189.31,189.29,0.03454825]
[1739732400454,0.03929234,189.32,189.29,8.7444735]
[1739732400754,0.03929234,189.32,189.31,8.70992525]
[1739732401350,5.32049234,189.32,189.31,8.70992525]
[1739732401653,0.03929234,189.32,189.29,0.03454825]
[1739732401850,8.74921759,189.32,189.29,0.03454825]
[1739732402448,5.2818,189.3,189.29,0.03454825]
[1739732404349,13.99172525,189.3,189.29,4.825e-05]
[1739732406357,8.70992525,189.25,189.17,8.70992525]
[1739732407350,5.2844,189.21,189.17,8.70992525]
[1739732407653,8.74791662,189.23,189.17,8.70992525]
[1739732407853,5.2854,189.18,189.13,8.70992525]
[1739732408048,8.70992525,189.19,189.13,8.70992525]
[1739732408454,0.03898683,189.18,189.13,8.70992525]
[1739732409251,5.32418683,189.18,189.13,8.70992525]
[1739732410256,5.2855,189.17,189.13,8.70992525]
[1739732410457,5.2855,189.17,189.11,8.70992525]
[1739732411058,0.03331506,189.16,189.11,8.70992525]
[1739732411257,5.31911506,189.16,189.1,5.2873]
[1739732412584,5.2863,189.14,189.09,8.70992525]
[1739732415257,13.99602525,189.15,189.09,13.99752525]
[1739732415761,13.99592525,189.15,189.09,13.99752525]
[1739732416459,13.99592525,189.15,189.1,5.2873]
[1739732418758,0.03331506,189.16,189.12,5.2867]
[1739732418961,8.70992525,189.17,189.11,8.70992525]
[1739732419262,0.03903273,189.16,189.11,8.70992525]
[1739732419759,0.03903273,189.16,189.14,5.2862]
[1739732419968,0.03903273,189.16,189.15,8.70992525]
[1739732420155,8.70992525,189.23,189.15,8.70992525]